Cogmind - Beta 14 @@@ ROGUE MODE // 2025.03.29 @ 20:20:08 Player: mix Result: Destroyed by S-27 Virus with Autogun Performance ------------- Evolutions (3) 1500 Regions Visited (8) 1600 Robots Destroyed (0) 0 Value Destroyed (400) 400 Prototype IDs (24) 480 Alien Tech Used (0) 0 Bonus (1904) 1904 TOTAL SCORE: 5884 Bonus ------- Pacifist 634 Follower Combat Kills 70 Entered Garrisons 400 Used RIF Installer 500 Aligned with FarCom 300 Cogmind --------- Core Integrity 0/700 Matter 90/300 Energy 100/100 System Corruption 0% Temperature Cool (0) Movement Core (50) Location -7/Garrison Parts ------- > --- POWER (1) -------- (None) > --- PROPULSION (4) --- (None) > --- UTILITY (6) ------ (None) > --- WEAPON (2) ------- (None) > --- INVENTORY (5) ---- Light Ion Engine Advanced Datajack Remote Datajack Mining Laser Peak State ------------ > --- POWER ------------ Micro Nuclear Core > --- PROPULSION ------- Medium Treads Medium Treads Improved Carbon-fiber Leg Improved Carbon-fiber Leg > --- UTILITY ---------- Weight Redist. System Seismic Detector Core Shielding Relay Coupler [NC] > --- WEAPON ----------- (None) > --- INVENTORY -------- Light Ion Engine Missile Launcher Improved Datajack Remote Datajack Mining Laser [Rating: 26] Favorites ----------- Power Micro Nuclear Core Engine Light Ion Engine Power Core Micro Nuclear Core Propulsion Medium Treads Treads Medium Treads Leg Improved Carbon-fiber Leg Hover Unit Gravmag System Utility Core Shielding Device Seismic Detector Storage Small Storage Unit Hackware Relay Coupler [NC] Protection Core Shielding Weapon Ion Cannon Energy Gun Heavy EM Shotgun Energy Cannon Ion Cannon Launcher Missile Launcher Special Weapon Mining Laser Special Melee Weapon Datajack Build | -11 -10 -10 -10 -9 -8 -8 -7 -7 ------- Run | Yrd Mat Min Exi Min Mat Gar Fac Gar Slots Evolved 6 | . . . . . 4 . 2 . Power . | . . . . . . . . . Propulsion 2 | . . . . . 2 . . . Utility 4 | . . . . . 2 . 2 . Weapon . | . . . . . . . . . Parts Attached 34 | 5 5 . . . 3 5 13 3 Power 3 | 1 . . . . . . 2 . Engine 1 | 1 . . . . . . . . Core 2 | . . . . . . . 2 . Reactor . | . . . . . . . . . Propulsion 11 | 4 . . . . 1 . 6 . Treads 8 | 4 . . . . 1 . 3 . Leg 2 | . . . . . . . 2 . Wheel . | . . . . . . . . . Hover 1 | . . . . . . . 1 . Flight . | . . . . . . . . . Utility 8 | . 4 . . . 1 . 3 . Device 3 | . 1 . . . . . 2 . Storage 1 | . 1 . . . . . . . Processor . | . . . . . . . . . Hackware 1 | . . . . . . . 1 . Protection 3 | . 2 . . . 1 . . . Artifact . | . . . . . . . . . Weapon 12 | . 1 . . . 1 5 2 3 Energy Gun 1 | . . . . . . . 1 . Energy Cannon 3 | . . . . . 1 2 . . Ballistic Gun . | . . . . . . . . . Ballistic Cannon . | . . . . . . . . . Launcher 3 | . . . . . . 2 . 1 Special Weapon 4 | . 1 . . . . . 1 2 Impact Weapon . | . . . . . . . . . Slashing Weapon . | . . . . . . . . . Piercing Weapon . | . . . . . . . . . Special Melee Weapon 1 | . . . . . . 1 . . Unidentified Prototypes 1 | . . . . . . . 1 . Parts Lost 20 | . 4 . . . . 4 9 3 Power 1 | . . . . . . . 1 . Propulsion 8 | . 2 . . . . 1 5 . Utility 7 | . 1 . . . . 1 3 2 Weapon 4 | . 1 . . . . 2 . 1 Highest Loss Streak 7 | . 4 . . . . 1 7 3 To Critical Strikes . | . . . . . . . . . Average Slot Usage (%) 39 | . 37 28 28 28 21 42 53 17 Core 1 | . . . . . . . 4 . Treads 9 | . 23 . . . 3 7 13 . Leg 2 | . . . . . . . 10 . Device 3 | . 5 . . . . . 8 12 Hackware 1 | . . . . . . . 4 . Protection 17 | . 6 28 28 28 18 26 8 . Energy Cannon 1 | . . . . . . 5 . . Peak Build Rating 26 | 3 5 2 2 2 8 10 26 7 Average Rating 8 | . 2 2 2 2 3 7 20 4 On Entrance 2 | . 2 2 2 2 2 6 2 4 Naked Turns 13 | . . . . . . . . 13 Heaviest Build 10 | . 7 2 2 2 8 10 8 7 Greatest Support 9 | 3 3 3 3 3 3 3 9 9 Greatest Overweight (x) 3 | . 2 . . . 2 3 . 2 Average Overweight (x) . | . . . . . . 1 . . Largest Inventory Capacity 8 | 5 8 5 5 5 5 5 5 5 Average Capacity 5 | 5 5 5 5 5 5 5 5 5 Most Carried 6 | 4 6 5 5 5 5 5 5 5 Average Carried 4 | 2 3 4 5 5 4 4 4 4 Final Capacity 5 | 5 5 5 5 5 5 5 5 5 Final Carried 5 | 2 5 5 5 5 5 5 5 4 Class Distribution -------------------- 100% | Mutant Dominant Class ---------------- Mutant | -10/Materials Mutant | -10/Mines Mutant | -10/Exiles Mutant | -9/Mines Mutant | -8/Materials Mutant | -8/Garrison Mutant | -7/Factory Mutant | -7/Garrison Resources | -11 -10 -10 -10 -9 -8 -8 -7 -7 ----------- Run | Yrd Mat Min Exi Min Mat Gar Fac Gar Matter Collected 267 | 70 . 177 . . . . 20 . Remotely . | . . . . . . . . . Salvage Created . | . . . . . . . . . Parts . | . . . . . . . . . Haulers Intercepted . | . . . . . . . . . Recyclers Shooed . | . . . . . . . . . Parts Field Recycled . | . . . . . . . . . Retrieved Matter . | . . . . . . . . . Parts Self-Destructed . | . . . . . . . . . Prevented . | . . . . . . . . . Kills | -11 -10 -10 -10 -9 -8 -8 -7 -7 ------- Run | Yrd Mat Min Exi Min Mat Gar Fac Gar Combat Hostiles Destroyed . | . . . . . . . . . Classes Destroyed . | . . . . . . . . . Best Kill Streak . | . . . . . . . . . Combat Bots Only . | . . . . . . . . . Max Kills in Single Turn . | . . . . . . . . . Gunslinging . | . . . . . . . . . Exploded . | . . . . . . . . . Melee . | . . . . . . . . . Uniques/NPCs Destroyed . | . . . . . . . . . Combat | -11 -10 -10 -10 -9 -8 -8 -7 -7 -------- Run | Yrd Mat Min Exi Min Mat Gar Fac Gar Hostile Shots Fired 419 | . 82 . . . . 80 214 43 Missed 169 | . 28 . . . . 24 105 12 Damage Taken 3125 | . 520 . . . . 1048 1058 499 Core 1327 | . 152 . . . . 468 293 414 Absorbed by Shields 83 | . . . . . . . 83 . Redirected to Shielding 144 | . 21 . . . . 100 23 . Core Remaining (%) 51 | 100 . . . 39 . 14 . . Volleys Fired 23 | . 1 . . . . 14 . 8 Largest 1 | . 1 . . . . 1 . 1 Hottest 100 | . 100 . . . . 60 . 100 Shots Fired 23 | . 1 . . . . 14 . 8 Gun . | . . . . . . . . . Cannon 12 | . . . . . . 12 . . Launcher 4 | . . . . . . 2 . 2 Special 7 | . 1 . . . . . . 6 Kinetic . | . . . . . . . . . Thermal 15 | . 1 . . . . 12 . 2 Explosive 4 | . . . . . . 2 . 2 Electromagnetic . | . . . . . . . . . Robot Hit Streak . | . . . . . . . . . Robot Miss Streak . | . . . . . . . . . Penetration Max . | . . . . . . . . . Secondary Targets . | . . . . . . . . . Shots Hit Robots . | . . . . . . . . . Core Hits 1 | . . . . . . . . 1 Critical Kills . | . . . . . . . . . Critical Parts Destroyed . | . . . . . . . . . Critical Strikes . | . . . . . . . . . Melee Attacks . | . . . . . . . . . Impact . | . . . . . . . . . Slashing . | . . . . . . . . . Piercing . | . . . . . . . . . Sneak Attacks . | . . . . . . . . . Combat Hostiles . | . . . . . . . . . Follow-up Attacks . | . . . . . . . . . Damage Inflicted 70 | . 32 . . . . . 21 17 Guns . | . . . . . . . . . Cannons . | . . . . . . . . . Explosions . | . . . . . . . . . Melee . | . . . . . . . . . Ramming 70 | . 32 . . . . . 21 17 Kinetic . | . . . . . . . . . Thermal . | . . . . . . . . . Explosive . | . . . . . . . . . Electromagnetic . | . . . . . . . . . Impact . | . . . . . . . . . Slashing . | . . . . . . . . . Piercing . | . . . . . . . . . Highest Corruption 2 | . . . . . . 2 . . Average Corruption 1 | . . . . . . 1 . . Corruption Purged . | . . . . . . . . . Corruption Blocked . | . . . . . . . . . Effects 1 | . . . . . . 1 . . Matter Fused 1 | . . . . . . 1 . . Overload Shots . | . . . . . . . . . Overflow Damage . | . . . . . . . . . Projectiles . | . . . . . . . . . Explosions . | . . . . . . . . . Melee . | . . . . . . . . . Knockbacks . | . . . . . . . . . Impact . | . . . . . . . . . Kinetic . | . . . . . . . . . Secondary . | . . . . . . . . . Self-Inflicted Damage 114 | . 14 . . . . 47 10 43 Shots 2 | . . . . . . 1 . 1 Rammed 12 | . 6 . . . . 1 2 3 Targets Rammed 12 | . 6 . . . . 1 2 3 Kicked . | . . . . . . . . . Crushed . | . . . . . . . . . Highest Temperature 29 | . . . . . . 29 . . Average Temperature 28 | . . . . . . 28 . . Received Heat Transfer 668 | . 75 . . . . 297 296 . Siege Activations . | . . . . . . . . . Robots Corrupted . | . . . . . . . . . Combat Hostiles . | . . . . . . . . . Parts Fried . | . . . . . . . . . Impact Corruptions . | . . . . . . . . . Robots Melted . | . . . . . . . . . Combat Hostiles . | . . . . . . . . . Parts Melted . | . . . . . . . . . Heat Transferred . | . . . . . . . . . Parts Sabotaged . | . . . . . . . . . Parts Stolen . | . . . . . . . . . Parts Stripped . | . . . . . . . . . Power Chain Reactions . | . . . . . . . . . Alert | -11 -10 -10 -10 -9 -8 -8 -7 -7 ------- Run | Yrd Mat Min Exi Min Mat Gar Fac Gar Peak Influence 407 | . 276 107 . . 4 368 407 132 Initial 187 | . . 107 . . . 2 187 116 Average 154 | . 141 104 . . . 89 274 119 Maximum Alert Level 2 | . 1 . . . . 1 2 . Low Security (%) 68 | 100 77 100 . 100 100 90 17 100 Level 1 24 | . 22 . . . . 9 57 . Level 2 7 | . . . . . . . 24 . Level 3 . | . . . . . . . . . Level 4 . | . . . . . . . . . Level 5 . | . . . . . . . . . High Security . | . . . . . . . . . Max Security . | . . . . . . . . . Squads Dispatched 4 | . 2 . . . . . 2 . Investigation 2 | . 1 . . . . . 1 . Extermination 1 | . . . . . . . 1 . Reinforcement 1 | . 1 . . . . . . . Assault . | . . . . . . . . . Garrison . | . . . . . . . . . Intercept . | . . . . . . . . . Searches Triggered . | . . . . . . . . . Construction Impeded . | . . . . . . . . . Haulers Reinforced . | . . . . . . . . . Active Scanning Responses . | . . . . . . . . . Cargo Convoy Interrupts 1 | . . . . . . . 1 . Stealth | -11 -10 -10 -10 -9 -8 -8 -7 -7 --------- Run | Yrd Mat Min Exi Min Mat Gar Fac Gar Distress Signals 2 | . . . . . . . 2 . Communications Jammed . | . . . . . . . . . Distress Signals . | . . . . . . . . . Times Spotted 80 | . 23 . . . . 18 31 8 Peak Tracking Total 17 | . 6 . . . . 10 17 6 Tactical Retreats 17 | . 7 . . . . 4 5 1 Traps | -11 -10 -10 -10 -9 -8 -8 -7 -7 ------- Run | Yrd Mat Min Exi Min Mat Gar Fac Gar Traps Triggered 8 | . 2 . . . . 3 3 . Indirectly . | . . . . . . . . . Trap Hack Attempts 14 | . . . . . . 14 . . Triggered . | . . . . . . . . . Disarmed . | . . . . . . . . . Reprogrammed 2 | . . . . . . 2 . . Reused 2 | . . . . . . 2 . . Traps Extracted . | . . . . . . . . . Installed . | . . . . . . . . . Triggered 2 | . . . . . . 2 . . Machines | -11 -10 -10 -10 -9 -8 -8 -7 -7 ---------- Run | Yrd Mat Min Exi Min Mat Gar Fac Gar Machines Disabled 3 | . . . . . . 3 . . Max in Single Turn 2 | . . . . . . 2 . . Garrison Relay 1 | . . . . . . 1 . . Phase Generator 1 | . . . . . . 1 . . Machines Repaired . | . . . . . . . . . Machines Dismantled . | . . . . . . . . . Machines Sabotaged . | . . . . . . . . . Overloaded Fab Kills . | . . . . . . . . . Hacking | -11 -10 -10 -10 -9 -8 -8 -7 -7 --------- Run | Yrd Mat Min Exi Min Mat Gar Fac Gar Machines Accessed 8 | . 1 . 1 . 1 2 3 . Terminals 4 | . 1 . . . . 2 1 . Fabricators . | . . . . . . . . . Repair Stations . | . . . . . . . . . Recycling Units 1 | . . . . . . . 1 . Scanalyzers . | . . . . . . . . . Garrison Access 2 | . . . . . 1 . 1 . Total Hacks 15 | . 2 . 1 . 1 4 7 . Successful 5 | . 1 . 1 . 1 1 1 . Failed 10 | . 1 . . . . 3 6 . Catastrophic 2 | . . . . . . 1 1 . Database Lockouts . | . . . . . . . . . Manual 5 | . 2 . 1 . . . 2 . Terminals 8 | . 2 . . . . 4 2 . Fabricators . | . . . . . . . . . Repair Stations . | . . . . . . . . . Recycling Units 4 | . . . . . . . 4 . Scanalyzers . | . . . . . . . . . Garrison Access 2 | . . . . . 1 . 1 . Terminal Hacks 2 | . . . 1 . . 1 . . Patrol Navigation 1 | . . . . . . 1 . . Derelict Proto ID Bank 1 | . . . 1 . . . . . Fabricator Hacks . | . . . . . . . . . Repair Station Hacks . | . . . . . . . . . Recycling Unit Hacks . | . . . . . . . . . Scanalyzer . | . . . . . . . . . Garrison Access Hacks 2 | . . . . . 1 . 1 . Unlock Access 2 | . . . . . 1 . 1 . Unauthorized Hacks 1 | . 1 . . . . . . . Terminals 1 | . 1 . . . . . . . Assimilate 1 | . 1 . . . . . . . Fabricators . | . . . . . . . . . Repair Stations . | . . . . . . . . . Recycling Units . | . . . . . . . . . Scanalyzers . | . . . . . . . . . Garrison Access . | . . . . . . . . . Data Cores Recovered . | . . . . . . . . . Used . | . . . . . . . . . Hacking Detections 6 | . 1 . . . . 2 3 . Full Trace Events 2 | . . . . . . 1 1 . Feedback Events . | . . . . . . . . . Feedback Blocked . | . . . . . . . . . Robot Schematics Acquired . | . . . . . . . . . Robots Built . | . . . . . . . . . Authchips . | . . . . . . . . . Time . | . . . . . . . . . Total Robot Build Rating . | . . . . . . . . . Part Schematics Acquired . | . . . . . . . . . Parts Built . | . . . . . . . . . Authchips . | . . . . . . . . . Time . | . . . . . . . . . Total Part Build Rating . | . . . . . . . . . Parts Repaired . | . . . . . . . . . Time . | . . . . . . . . . Parts Recycled . | . . . . . . . . . Recycled Matter . | . . . . . . . . . Retrieved Matter . | . . . . . . . . . Retrieved Components . | . . . . . . . . . Parts Scanalyzed . | . . . . . . . . . Part Schematics Acquired . | . . . . . . . . . Parts Damaged . | . . . . . . . . . Bothacking | -11 -10 -10 -10 -9 -8 -8 -7 -7 ------------ Run | Yrd Mat Min Exi Min Mat Gar Fac Gar Used RIF Installer 1 | . . . . . . 1 . . Robots Hacked . | . . . . . . . . . Non-combat . | . . . . . . . . . Combat . | . . . . . . . . . Robot Hacks Applied . | . . . . . . . . . Relay Couplers Released 5 | . . . . . . 5 . . Machine Destruction 5 | . . . . . . 5 . . Attached 1 | . . . . . . . 1 . Fabnet Peak Effective % . | . . . . . . . . . Robots Rewired . | . . . . . . . . . Allies Hacked . | . . . . . . . . . Hacks Repelled . | . . . . . . . . . Allies | -11 -10 -10 -10 -9 -8 -8 -7 -7 -------- Run | Yrd Mat Min Exi Min Mat Gar Fac Gar Total Allies 3 | . . 3 . . . . . . Largest Group 3 | . . 3 2 2 2 2 . . Highest-Rated Group 40 | . . 40 24 24 24 24 . . Highest-Rated Ally 16 | . . 16 16 16 16 16 . . Total Orders 4 | . . . . . . 4 . . STAY 2 | . . . . . . 2 . . FOLLOW 2 | . . . . . . 2 . . Ally Attacks 17 | . . 7 . . . 10 . . Total Damage 136 | . . 34 . . . 102 . . Kills 3 | . . 1 . . . 2 . . Allies Corrupted . | . . . . . . . . . Allies Melted . | . . . . . . . . . Intel | -11 -10 -10 -10 -9 -8 -8 -7 -7 ------- Run | Yrd Mat Min Exi Min Mat Gar Fac Gar Robot Analysis Total . | . . . . . . . . . Derelict Logs Recovered 2 | . . 1 . 1 . . . . Drone Launches . | . . . . . . . . . Drone Recoveries . | . . . . . . . . . Exploration | -11 -10 -10 -10 -9 -8 -8 -7 -7 ------------- Run | Yrd Mat Min Exi Min Mat Gar Fac Gar Turns Passed 2051 | 24 297 293 169 11 33 556 575 93 Spaces Moved 2248 | 27 503 384 246 13 50 377 585 63 Core 2248 | 27 503 384 246 13 50 377 585 63 Treads . | . . . . . . . . . Legs . | . . . . . . . . . Wheels . | . . . . . . . . . Hover . | . . . . . . . . . Flight . | . . . . . . . . . Fastest Speed 50 | 50 50 50 50 50 50 50 50 50 Average Speed 58 | 50 50 50 50 50 54 98 50 65 Slowest Speed 200 | 50 150 50 50 50 150 200 50 150 Overloaded Moves . | . . . . . . . . . Propulsion Burnouts . | . . . . . . . . . Robots Hopped . | . . . . . . . . . Cave-ins Triggered . | . . . . . . . . . Exploration Rate (%) 36 | 3 79 87 59 12 8 50 21 8 Regions Visited 8 Branch Regions 3 Pre-discovered Areas . | . . . . . . . . . Known Exits Taken 2 | . . . . . 1 . 1 . Unknown Exits Taken 5 | 1 1 1 1 1 . . . . Scrap Searched 1 | . . 1 . . . . . . Spaces Dug 18 | . 1 . . . . . . 17 Terrain Destroyed 96 | . 1 . . . . 78 . 17 Melee . | . . . . . . . . . Projectile 1 | . 1 . . . . . . . AOE 95 | . . . . . . 78 . 17 Terrain Rammed . | . . . . . . . . . Walls Destroyed . | . . . . . . . . . Machines Disabled . | . . . . . . . . . Actions | -11 -10 -10 -10 -9 -8 -8 -7 -7 --------- Run | Yrd Mat Min Exi Min Mat Gar Fac Gar Total 2940 | 38 542 485 291 16 54 548 863 103 Wait 548 | . 18 98 46 4 . 118 240 24 Move 2240 | 26 502 383 245 12 49 376 584 63 Hop . | . . . . . . . . . Pick Up 21 | 4 9 2 . . 1 2 2 1 Fast Attach 13 | . . . . . 2 . 11 . Attach 18 | 5 4 . . . 1 5 2 1 Detach 7 | 3 . . . . . 3 1 . Swap 3 | . 1 . . . . . . 2 Drop 8 | . 1 2 . . 1 . 3 1 Fire 23 | . 1 . . . . 14 . 8 Melee . | . . . . . . . . . Ram 12 | . 6 . . . . 1 2 3 Kick . | . . . . . . . . . Crush . | . . . . . . . . . Escape Stasis 33 | . . . . . . 15 18 . Rewire . | . . . . . . . . . Trap 14 | . . . . . . 14 . . Miscellaneous . | . . . . . . . . . Route ------- -11/Scrapyard -10/Materials (discovered 4 exits: [*Mat x3] / [*Min]) -10/Mines (discovered 3 exits: [*Mat x2] / *Exi) -10/Exiles -9/Mines -8/Materials (discovered 2 exits: Fac / Gar) -8/Garrison -7/Factory (discovered 3 exits: [*Fac] / [*Sto] / Gar) -7/Garrison History --------- Turn | Location | Event 3 | -11/Scrapyard | Discovered new exit (range 15) 25 | -11/Scrapyard | Entered Materials 65 | -10/Materials | Discovered new exit (range 11) 112 | -10/Materials | Discovered new exit (range 16) 231 | -10/Materials | Discovered new exit (range 5) 283 | -10/Materials | Core integrity fell below 50% 307 | -10/Materials | Lost 4 parts (2n1u1w) 309 | -10/Materials | Build established: Mutant 312 | -10/Materials | Discovered new exit (range 11) 322 | -10/Materials | Entered Mines 325 | -10/Mines | Assembled infested the area 330 | -10/Mines | Assisted by a Guerilla fighting off Assembled 489 | -10/Mines | Discovered new exit (range 8) 504 | -10/Mines | Discovered new exit (range 10) 517 | -10/Mines | Assisted by bots powering up and referring to "LRC-V3" 535 | -10/Mines | Learned Materials terminal intel 593 | -10/Mines | Deemed a non-threat by the Exiles lab entrance 593 | -10/Mines | Discovered new exit (range 5) 615 | -10/Mines | Entered Exiles 615 | -10/Exiles | Accompanied by 2 allies 628 | -10/Exiles | Met 8R-AWN 637 | -10/Exiles | Met EX-HEX 650 | -10/Exiles | Met EX-BIN 677 | -10/Exiles | Aligned with FarCom system 677 | -10/Exiles | Given EX-Vault access code 689 | -10/Exiles | Opened EX-Vault 702 | -10/Exiles | Warned to stay clear of 0b10 Research branches 715 | -10/Exiles | Met EX-DEC 734 | -10/Exiles | Discovered new exit (range 10) 784 | -10/Exiles | Entered Mines 784 | -9/Mines | Accompanied by 2 allies 784 | -9/Mines | Discovered new exit (range 12) 785 | -9/Mines | Met a Derelict bent on vengeance 787 | -9/Mines | Learned location of 1 exit from Materials 795 | -9/Mines | Entered Materials 795 | -8/Materials | Accompanied by 2 allies 795 | -8/Materials | Evolved 4 slots: Propulsion x2, Utility x2 796 | -8/Materials | Identified exit to Factory 797 | -8/Materials | Loaded intel: 12 terminal locations 824 | -8/Materials | Identified exit to Garrison 828 | -8/Materials | Entered Garrison 828 | -8/Garrison | Accompanied by 2 allies 1068 | -8/Garrison | Triggered checkpoint 1277 | -8/Garrison | Discovered exit to Factory (range 11) 1331 | -8/Garrison | Garrison Relay disabled 1343 | -8/Garrison | Phase Generator disabled 1349 | -8/Garrison | Installed Relay Interface Framework 1364 | -8/Garrison | Core integrity fell below 50% 1373 | -8/Garrison | Triggered checkpoint 1375 | -8/Garrison | Core integrity fell below 20% 1384 | -8/Garrison | Entered Factory 1384 | -7/Factory | Evolved 2 slots: Utility x2 1916 | -7/Factory | Discovered new exit (range 4) 1953 | -7/Factory | Discovered new exit (range 15) 1954 | -7/Factory | Cargo convoy interrupted 1957 | -7/Factory | Identified exit to Garrison 1959 | -7/Factory | Entered Garrison 1985 | -7/Garrison | Lost 7 parts (1p4n2u) 2030 | -7/Garrison | Core integrity fell below 50% 2043 | -7/Garrison | Core integrity fell below 20% 2052 | -7/Garrison | Destroyed by S-27 Virus with Autogun Last Messages --------------- EXIT=UNLOCKED: GARRISON Assembly Bed disabled. LOCATION=GARRISON GOAL=ESCAPE Receiving FarCom transmissions... C-30 ARC bursts open, deploying its payload. S-27 Virus unfolds itself. Missile Launcher destroyed. Detecting nearby RIF Installer. Seismic Detector destroyed. H-55 Commando springs to life. Penetrated by Slug. Acquired Adv. Datajack. Dropped Imp. Datajack. Penetrated by Slug. Machine disabled. Weight Redist. System destroyed. Slammed into S-27 Virus. Penetrated by Slug. Slug penetrates Wall. Map ----- +----------------------------------------------------+ | ?????????????????????????????????????????????????? | | ?????????????????????????????????????????????????? | | ?????????????????????????????????????????????????? | | ?????????????????????????????????????????????????? | | ?????????????????????????????????????????????????? | | ?????????????????????????????????????????????????? | | ?????????????????????????????????????????????????? | | ?????????????????????????????????????????????????? | | ?????????????????????g???????????????????????????? | | ?????????????????????????????????????????????????? | | ?????????????????????????????????????????????????? | | ?????????????????????????????????????????????????? | | ?????????????????????????????????????????????????? | | ?????????????????????????????????????????????????? | | ?????????????????????????????????????????????????? | | ???????????gg?g??????????????????????????????????? | | ?????????????????????????????????????????????????? | | ?????????????????????????????????????????????????? | | ?????????????????????????????????????????????????? | | ?????????????????????????????????????????????????? | | ?????????????????????????????????????????????????? | | ???????????????????########??????????????????????? | | ??????????????????? #???????????Y??????????? | | ??????????????????? % ^ ######?????????????????? | | ???????????????????#++## ??????????????????? | | ???????????????????#" ## @ #?????????????????????? | | ???????????????????# # #?????????????????????? | | ???????????????????# # ##????????????????????? | | ??????"?"??????????# # #????????????????????? | | ??????"?"??????????# ##????????????????????? | | ??????"?"??????????# #????????????????????? | | ??????"""??????????# #????????????????????? | | ???????????????????#ss## #????????????????????? | | ???????????????????# #### ##????????????????????? | | ???????????????????# #??###?????????????????????? | | ???????????????????# #??????????????????????????? | | ?????????????????### s#??????????????????????????? | | ???????????????### s +??????????????????????????? | | ???????????????#"" # #??????????????????????????? | | ???????????????#"! # #??????????????????????????? | | ???????????????# = # #??????????????????????????? | | ???????????????#"! #h #??????????????????????????? | | ???????????????#"/ # h#??????????????????????????? | | ???????????????#"* # #??????????????????????????? | | ???????????????#"[ # # ]"#??????????????????????? | | ???????????????#"" ""#??????????????????????? | | ???????????????#"""!!!*"""#??????????????????????? | | ???????????????#""""""""""#??????????????????????? | | ???????????????############??????????????????????? | | ?????????????????????????????????????????????????? | +----------------------------------------------------+ Best States ------------- Heat Dissipation 34 Energy Generation 15 Energy Capacity 150 Matter Stores 285 Matter Capacity 300 Sight Range 16 Terrain Scan Density 10 Additional Mass Support 6 Core Shielding 20 Evasion (%) 50 Recoil Reduction 1 Relay Coupler Types 1 Relay Coupler Value 31 Item Schematics ----------------- None Robot Schematics ------------------ None Fabricated ------------ Nothing Alien Tech Used ----------------- None Achievements -------------- None Challenges ------------ None Game ------ Seed AbsorptionCouplerFrame Manual? 0 Play Time 00:28:52 Cumulative 75.9 hours Start 2025.03.29 @ 19:53:27 End 2025.03.29 @ 20:20:08 Sessions 1 Manual Loads 0 Difficulty Rogue Special Mode None Game No. 115 Rogue 101 Adventurer 14 Explorer 0 Win Type - Total 0 Types 0/0/0/0/0/0/0/0/0 Lore% 34 Gallery% 46 Achievement% 41 Wizard Run 0 Options --------- Layout 1 ASCII 0 Keyboard 0 Movement Mouse Keybinds 0 Fullscreen 1 Font 24/Smallcaps Map View 50x35 Zoom Use 0% Tactical HUD 0 Map Filters NONE Filters NONE Steam 1 RUN: c1a800b8-a8fe-40a5-8e42-08e9802d35a2